{"text_format":"3","workbook":"xlsx","n_sheets":2,"sheets":["Fluxo de Caixa","Gráfico de Fluxo de Caixa"],"not_rendered":{"charts":1,"defined_names":5},"read":"whole","date_system":"1900"}

{"sheet":"Fluxo de Caixa","index":0,"n_rows":61,"n_cols":16,"rows_kept":61,"merged":[[0,1,0,15],[1,1,1,15]]}
[null,"Projeção de fluxo de caixa de pequenas empresas"]
[null,"Nome da empresa"]
[null,"Data inicial",{"$f":"TODAY()","v":"2019-04-22"}]
[null,"Alerta de mínimo de saldo em dinheiro",null,{"$f":"Mínimum_em_caixa","v":0},{"$f":"Mínimum_em_caixa","v":0},0,0,0,0,0,0,0,0,0,0]
[]
[null,null,"Início","Jan-18","Fev-18","Mar-18","Abr-18","Mai-18","Jun-18","Jul-18","Ago-18","Set-18","Out-18","Nov-18","Dez-18","Total"]
[null,"Dinheiro em caixa (início do mês)",null,{"$f":"C53","v":0},0,0,0,0,0,0,0,0,0,0,0]
[]
[null,"RECEBIMENTOS EM DINHEIRO"," ","Jan-18","Fev-18","Mar-18","Abr-18","Mai-18","Jun-18","Jul-18","Ago-18","Set-18","Out-18","Nov-18","Dez-18","Total"]
[null,"Vendas em dinheiro",{"$nulls":13},{"$f":"SUM(D10:O10)","v":0}]
[null,"Devoluções e descontos",{"$nulls":13},0]
[null,"Conjuntos de contas a receber",{"$nulls":13},0]
[null,"Juros, outras receitas",{"$nulls":13},0]
[null,"Proventos de empréstimos",{"$nulls":13},0]
[null,"Contribuições do proprietário",{"$nulls":13},0]
[null,"TOTAL DE RECEBIMENTOS EM DINHEIRO",null,{"$f":"SUM(D10,D12:D15,(D11*-1))","v":0},0,0,0,0,0,0,0,0,0,0,0,{"$f":"SUBTOTAL(109,EntradasEmCaixa[Total])","v":0}]
[null,"Total disponível em dinheiro",{"$f":"(C7+EntradasEmCaixa[[#Totals],[ ]])","v":0},{"$f":"(D7+EntradasEmCaixa[[#Totals],[Jan-18]])","v":0},{"$f":"(E7+EntradasEmCaixa[[#Totals],[Fev-18]])","v":0},{"$f":"(F7+EntradasEmCaixa[[#Totals],[Mar-18]])","v":0},{"$f":"(G7+EntradasEmCaixa[[#Totals],[Abr-18]])","v":0},{"$f":"(H7+EntradasEmCaixa[[#Totals],[Mai-18]])","v":0},{"$f":"(I7+EntradasEmCaixa[[#Totals],[Jun-18]])","v":0},{"$f":"(J7+EntradasEmCaixa[[#Totals],[Jul-18]])","v":0},{"$f":"(K7+EntradasEmCaixa[[#Totals],[Ago-18]])","v":0},{"$f":"(L7+EntradasEmCaixa[[#Totals],[Set-18]])","v":0},{"$f":"(M7+EntradasEmCaixa[[#Totals],[Out-18]])","v":0},{"$f":"(N7+EntradasEmCaixa[[#Totals],[Nov-18]])","v":0},{"$f":"(O7+EntradasEmCaixa[[#Totals],[Dez-18]])","v":0}]
[]
[null,"PAGAMENTOS EM DINHEIRO"," ","Jan-18","Fev-18","Mar-18","Abr-18","Mai-18","Jun-18","Jul-18","Ago-18","Set-18","Out-18","Nov-18","Dez-18","Total"]
[null,"Publicidade",{"$nulls":13},{"$f":"SUM(D20:O20)","v":0}]
[null,"Comissões e taxas",{"$nulls":13},0]
[null,"Mão de obra contratada",{"$nulls":13},0]
[null,"Programas de benefícios de funcionários",{"$nulls":13},0]
[null,"Seguro (que não seja de saúde)",{"$nulls":13},0]
[null,"Despesas de juros",{"$nulls":13},0]
[null,"Materiais e suprimentos (em COGS)",{"$nulls":13},0]
[null,"Refeições e entretenimento",{"$nulls":13},0]
[null,"Juros de hipoteca",{"$nulls":13},0]
[null,"Despesas do escritório",{"$nulls":13},0]
[null,"Outras despesas de juros",{"$nulls":13},0]
[null,"Plano de aposentadoria e divisão de lucros",{"$nulls":13},0]
[null,"Compras para revenda",{"$nulls":13},0]
[null,"Aluguel ou leasing",{"$nulls":13},0]
[null,"Aluguel ou leasing: veículos, equipamentos",{"$nulls":13},0]
[null,"Reparos e manutenção",{"$nulls":13},0]
[null,"Suprimentos (não em COGS)",{"$nulls":13},0]
[null,"Impostos e licenças",{"$nulls":13},0]
[null,"Viagens",{"$nulls":13},0]
[null,"Serviços Públicos",{"$nulls":13},0]
[null,"Salários (menos créditos func.)",{"$nulls":13},0]
[null,"Outras despesas",{"$nulls":13},0]
[null,"Outras despesas",{"$nulls":13},0]
[null,"Outras despesas",{"$nulls":13},0]
[null,"Diversos",{"$nulls":13},0]
[null,"SUBTOTAL",null,{"$f":"SUBTOTAL(109,Despesas[Jan-18])","v":0},{"$f":"SUBTOTAL(109,Despesas[Fev-18])","v":0},{"$f":"SUBTOTAL(109,Despesas[Mar-18])","v":0},{"$f":"SUBTOTAL(109,Despesas[Abr-18])","v":0},{"$f":"SUBTOTAL(109,Despesas[Mai-18])","v":0},{"$f":"SUBTOTAL(109,Despesas[Jun-18])","v":0},{"$f":"SUBTOTAL(109,Despesas[Jul-18])","v":0},{"$f":"SUBTOTAL(109,Despesas[Ago-18])","v":0},{"$f":"SUBTOTAL(109,Despesas[Set-18])","v":0},{"$f":"SUBTOTAL(109,Despesas[Out-18])","v":0},{"$f":"SUBTOTAL(109,Despesas[Nov-18])","v":0},{"$f":"SUBTOTAL(109,Despesas[Dez-18])","v":0},{"$f":"SUBTOTAL(109,Despesas[Total])","v":0}]
[null,"PAGAMENTOS EM DINHEIRO"," ","Jan-18","Fev-18","Mar-18","Abr-18","Mai-18","Jun-18","Jul-18","Ago-18","Set-18","Out-18","Nov-18","Dez-18","Total"]
[null,"Pagamento principal do empréstimo",{"$nulls":13},{"$f":"SUM(D47:O47)","v":0}]
[null,"Compras de capital",{"$nulls":13},0]
[null,"Outros custos de inicialização",{"$nulls":13},0]
[null,"Reserva e/ou garantia",{"$nulls":13},0]
[null,"Retirada do proprietário",{"$nulls":13},0]
[null,"TOTAL PAGO EM DINHEIRO",null,{"$f":"Despesas[[#Totals],[Jan-18]]+SUBTOTAL(109,MontantesPagos[Jan-18])","v":0},{"$f":"Despesas[[#Totals],[Fev-18]]+SUBTOTAL(109,MontantesPagos[Fev-18])","v":0},{"$f":"Despesas[[#Totals],[Mar-18]]+SUBTOTAL(109,MontantesPagos[Mar-18])","v":0},{"$f":"Despesas[[#Totals],[Abr-18]]+SUBTOTAL(109,MontantesPagos[Abr-18])","v":0},{"$f":"Despesas[[#Totals],[Mai-18]]+SUBTOTAL(109,MontantesPagos[Mai-18])","v":0},{"$f":"Despesas[[#Totals],[Jun-18]]+SUBTOTAL(109,MontantesPagos[Jun-18])","v":0},{"$f":"Despesas[[#Totals],[Jul-18]]+SUBTOTAL(109,MontantesPagos[Jul-18])","v":0},{"$f":"Despesas[[#Totals],[Ago-18]]+SUBTOTAL(109,MontantesPagos[Ago-18])","v":0},{"$f":"Despesas[[#Totals],[Set-18]]+SUBTOTAL(109,MontantesPagos[Set-18])","v":0},{"$f":"Despesas[[#Totals],[Out-18]]+SUBTOTAL(109,MontantesPagos[Out-18])","v":0},{"$f":"Despesas[[#Totals],[Nov-18]]+SUBTOTAL(109,MontantesPagos[Nov-18])","v":0},{"$f":"Despesas[[#Totals],[Dez-18]]+SUBTOTAL(109,MontantesPagos[Dez-18])","v":0},0]
[null,"Dinheiro em caixa (final do mês)",{"$f":"C17","v":0},{"$f":"D17-MontantesPagos[[#Totals],[Jan-18]]","v":0},{"$f":"E17-MontantesPagos[[#Totals],[Fev-18]]","v":0},{"$f":"F17-MontantesPagos[[#Totals],[Mar-18]]","v":0},{"$f":"G17-MontantesPagos[[#Totals],[Abr-18]]","v":0},{"$f":"H17-MontantesPagos[[#Totals],[Mai-18]]","v":0},{"$f":"I17-MontantesPagos[[#Totals],[Jun-18]]","v":0},{"$f":"J17-MontantesPagos[[#Totals],[Jul-18]]","v":0},{"$f":"K17-MontantesPagos[[#Totals],[Ago-18]]","v":0},{"$f":"L17-MontantesPagos[[#Totals],[Set-18]]","v":0},{"$f":"M17-MontantesPagos[[#Totals],[Out-18]]","v":0},{"$f":"N17-MontantesPagos[[#Totals],[Nov-18]]","v":0},{"$f":"O17-MontantesPagos[[#Totals],[Dez-18]]","v":0}]
[]
[null,"OUTROS DADOS OPERACIONAIS"," ","Jan-18","Fev-18","Mar-18","Abr-18","Mai-18","Jun-18","Jul-18","Ago-18","Set-18","Out-18","Nov-18","Dez-18","Total"]
[null,"Volume de vendas (reais)",{"$nulls":13},{"$f":"SUM(OutrosDadosOperacionais[[#This Row],[Jan-18]:[Dez-18]])","v":0}]
[null,"Saldo de contas a receber",{"$nulls":13},{"$f":"SUM(OutrosDadosOperacionais[[#This Row],[Jan-18]:[Dez-18]])","v":0}]
[null,"Saldo de dívida inválida",{"$nulls":13},{"$f":"SUM(OutrosDadosOperacionais[[#This Row],[Jan-18]:[Dez-18]])","v":0}]
[null,"Estoque disponível",{"$nulls":13},{"$f":"SUM(OutrosDadosOperacionais[[#This Row],[Jan-18]:[Dez-18]])","v":0}]
[null,"Saldo de contas a pagar",{"$nulls":13},{"$f":"SUM(OutrosDadosOperacionais[[#This Row],[Jan-18]:[Dez-18]])","v":0}]
[null,"Depreciação",{"$nulls":13},{"$f":"SUM(OutrosDadosOperacionais[[#This Row],[Jan-18]:[Dez-18]])","v":0}]

{"sheet":"Gráfico de Fluxo de Caixa","index":1,"n_rows":37,"n_cols":4,"rows_kept":37,"merged":[[1,1,34,16],[36,1,36,2]]}
[]
[null,"O gráfico de combinação que mostra o Alerta de mínimo de dinheiro em caixa e a Projeção de fluxo de caixa está nesta célula."]
{"$rows_empty":34}
[null,"Alerta de mínimo de saldo em dinheiro",null,{"$f":"[0]!Mínimum_em_caixa","v":{"v":0,"d":"R$ 0"}}]